[Event "Titled Tuesday Blitz May 25 2021"]
[White "Pridorozhni, Aleksei"]
[Black "Urazayev, Arystanbek"]
[WhiteFideId "4127870"]
[BlackFideId "13709810"]
[WhiteElo "2565"]
[BlackElo "2321"]
[Result "1-0"]
[Round "10"]
[TimeControl "180+1"]
[Date "2021.05.25"]
[WhiteClock "0:00:10"]
[BlackClock "0:00:05"]

1. e4 {[%clk 0:03:00]}  c5 {[%clk 0:03:00]} 2. Nc3 {[%clk 0:02:59]}  e6 {[%clk 0:03:00]} 3. Nf3 {[%clk 0:02:59]}  a6 {[%clk 0:03:00]} 4. g4 {[%clk 0:02:58]}  b5 {[%clk 0:03:01]} 5. d3 {[%clk 0:02:58]}  Bb7 {[%clk 0:03:01]} 6. Bg2 {[%clk 0:02:59]}  d5 {[%clk 0:03:02]} 7. exd5 {[%clk 0:02:58]}  exd5 {[%clk 0:03:03]} 8. d4 {[%clk 0:02:58]}  Nf6 {[%clk 0:03:00]} 9. g5 {[%clk 0:02:56]}  Ne4 {[%clk 0:03:01]} 10. O-O {[%clk 0:02:55]}  Be7 {[%clk 0:03:01]} 11. dxc5 {[%clk 0:02:53]}  Nxc3 {[%clk 0:02:55]} 12. bxc3 {[%clk 0:02:52]}  O-O {[%clk 0:02:56]} 13. h4 {[%clk 0:02:36]}  Bxc5 {[%clk 0:02:52]} 14. Nd4 {[%clk 0:02:32]}  Nd7 {[%clk 0:02:44]} 15. Re1 {[%clk 0:02:22]}  Re8 {[%clk 0:02:40]} 16. Bf4 {[%clk 0:02:20]}  Nf8 {[%clk 0:02:33]} 17. Qg4 {[%clk 0:02:14]}  Qb6 {[%clk 0:02:24]} 18. Bg3 {[%clk 0:02:13]}  b4 {[%clk 0:02:22]} 19. h5 {[%clk 0:02:08]}  bxc3 {[%clk 0:02:16]} 20. Nf5 {[%clk 0:01:59]}  Qb4 {[%clk 0:01:32]} 21. Qxb4 {[%clk 0:01:45]}  Bxb4 {[%clk 0:01:33]} 22. Reb1 {[%clk 0:01:44]}  Bc8 {[%clk 0:01:24]} 23. Nxg7 {[%clk 0:01:43]}  Kxg7 {[%clk 0:01:16]} 24. Rxb4 {[%clk 0:01:43]}  Bf5 {[%clk 0:01:06]} 25. Bxd5 {[%clk 0:01:34]}  Rad8 {[%clk 0:01:07]} 26. Bb3 {[%clk 0:01:33]}  Ne6 {[%clk 0:01:04]} 27. Be5+ {[%clk 0:01:29]}  Kg8 {[%clk 0:01:04]} 28. Bf6 {[%clk 0:01:26]}  Rc8 {[%clk 0:00:52]} 29. Rb7 {[%clk 0:01:17]}  Bg4 {[%clk 0:00:35]} 30. h6 {[%clk 0:01:13]}  Bh5 {[%clk 0:00:36]} 31. Ra7 {[%clk 0:01:02]}  Nc5 {[%clk 0:00:22]} 32. Rc1 {[%clk 0:00:53]}  Ne4 {[%clk 0:00:22]} 33. Rxa6 {[%clk 0:00:51]}  Rc5 {[%clk 0:00:19]} 34. f4 {[%clk 0:00:45]}  Rf5 {[%clk 0:00:15]} 35. Rf1 {[%clk 0:00:35]}  Nd2 {[%clk 0:00:16]} 36. Rf2 {[%clk 0:00:33]}  Nf3+ {[%clk 0:00:15]} 37. Kg2 {[%clk 0:00:30]}  Rxf4 {[%clk 0:00:16]} 38. Ra7 {[%clk 0:00:18]}  Rg4+ {[%clk 0:00:15]} 39. Kh3 {[%clk 0:00:18]}  Rh4+ {[%clk 0:00:09]} 40. Kg3 {[%clk 0:00:17]}  Rg4+ {[%clk 0:00:09]} 41. Kh3 {[%clk 0:00:15]}  Nxg5+ {[%clk 0:00:09]} 42. Bxg5 {[%clk 0:00:15]}  Rxg5 {[%clk 0:00:10]} 43. Rg2 {[%clk 0:00:13]}  Rxg2 {[%clk 0:00:04]} 44. Kxg2 {[%clk 0:00:13]}  Kf8 {[%clk 0:00:04]} 45. Rc7 {[%clk 0:00:14]}  Re3 {[%clk 0:00:03]} 46. a4 {[%clk 0:00:13]}  Bg6 {[%clk 0:00:03]} 47. Kf1 {[%clk 0:00:11]}  Rh3 {[%clk 0:00:02]} 48. a5 {[%clk 0:00:12]}  Rh1+ {[%clk 0:00:02]} 49. Kf2 {[%clk 0:00:11]}  Ra1 {[%clk 0:00:03]} 50. Ra7 {[%clk 0:00:11]}  Bxc2 {[%clk 0:00:03]} 51. Bxc2 {[%clk 0:00:11]}  Ra2 {[%clk 0:00:04]} 52. Ke3 {[%clk 0:00:12]}  Rxc2 {[%clk 0:00:04]} 53. Kd3 {[%clk 0:00:12]}  Rh2 {[%clk 0:00:04]} 54. Ra8+ {[%clk 0:00:10]}  Ke7 {[%clk 0:00:05]} 55. Kxc3 {[%clk 0:00:11]}  Rxh6 {[%clk 0:00:05]} 56. Kb4 {[%clk 0:00:11]}  Rh1 {[%clk 0:00:05]} 57. Rh8 {[%clk 0:00:10]}  Rb1+ {[%clk 0:00:05]} 58. Kc5 {[%clk 0:00:10]}  Ra1 {[%clk 0:00:05]} 59. Kb6 {[%clk 0:00:10]}  Kf6 {[%clk 0:00:05]} 60. a6 {[%clk 0:00:10]}  Kg5 {[%clk 0:00:04]} 61. a7 {[%clk 0:00:09]}  f5 {[%clk 0:00:04]} 62. a8=Q {[%clk 0:00:09]}  Rxa8 {[%clk 0:00:05]} 63. Rxa8 {[%clk 0:00:10]}  f4 {[%clk 0:00:06]} 64. Kc5 {[%clk 0:00:10]}  f3 {[%clk 0:00:04]} 65. Kd4 {[%clk 0:00:10]}  Kf4 {[%clk 0:00:04]} 66. Rf8+ {[%clk 0:00:10]}  Kg3 {[%clk 0:00:05]} 67. Ke3 {[%clk 0:00:10]} 1-0


[Site "https://www.chess.com"]

[Event "Titled Tuesday Blitz May 25 2021"]
[White "Przybylski, Wojciech"]
[Black "Orlov, Oleg"]
[WhiteFideId "1117599"]
[BlackFideId "4166612"]
[WhiteElo "2317"]
[BlackElo "2395"]
[Result "0-1"]
[Round "10"]
[TimeControl "180+1"]
[Date "2021.05.25"]
[WhiteClock "0:00:05"]
[BlackClock "0:00:26"]

1. e4 {[%clk 0:03:00]}  c5 {[%clk 0:02:54]} 2. Nf3 {[%clk 0:02:59]}  e6 {[%clk 0:02:53]} 3. c4 {[%clk 0:02:57]}  Nc6 {[%clk 0:02:52]} 4. Nc3 {[%clk 0:02:58]}  g5 {[%clk 0:02:52]} 5. d3 {[%clk 0:02:56]}  g4 {[%clk 0:02:50]} 6. Nd2 {[%clk 0:02:56]}  h5 {[%clk 0:02:49]} 7. Be2 {[%clk 0:02:56]}  Bg7 {[%clk 0:02:42]} 8. Nf1 {[%clk 0:02:53]}  Nge7 {[%clk 0:02:37]} 9. h3 {[%clk 0:02:52]}  f5 {[%clk 0:02:27]} 10. exf5 {[%clk 0:02:43]}  exf5 {[%clk 0:02:28]} 11. Bg5 {[%clk 0:02:17]}  Qa5 {[%clk 0:02:23]} 12. Qd2 {[%clk 0:02:14]}  d6 {[%clk 0:02:21]} 13. O-O-O {[%clk 0:02:02]}  Be6 {[%clk 0:02:19]} 14. Kb1 {[%clk 0:01:56]}  O-O-O {[%clk 0:02:17]} 15. Nd5 {[%clk 0:01:47]}  Qxd2 {[%clk 0:02:16]} 16. Rxd2 {[%clk 0:01:43]}  Rde8 {[%clk 0:02:11]} 17. Nf4 {[%clk 0:01:33]}  Bf7 {[%clk 0:02:09]} 18. Ne3 {[%clk 0:01:31]}  Nd4 {[%clk 0:02:07]} 19. Bd1 {[%clk 0:01:30]}  Nec6 {[%clk 0:02:04]} 20. Ba4 {[%clk 0:01:25]}  a6 {[%clk 0:01:59]} 21. Nfd5 {[%clk 0:01:18]}  b5 {[%clk 0:01:57]} 22. Bd1 {[%clk 0:01:08]}  Kb7 {[%clk 0:01:50]} 23. a3 {[%clk 0:00:43]}  Bg6 {[%clk 0:01:22]} 24. Ka2 {[%clk 0:00:42]}  Ref8 {[%clk 0:01:19]} 25. Ne7 {[%clk 0:00:33]}  Be8 {[%clk 0:01:19]} 26. N3d5 {[%clk 0:00:31]}  Ne5 {[%clk 0:01:16]} 27. hxg4 {[%clk 0:00:29]}  fxg4 {[%clk 0:01:12]} 28. Be3 {[%clk 0:00:27]}  bxc4 {[%clk 0:01:11]} 29. dxc4 {[%clk 0:00:11]}  Nxc4 {[%clk 0:01:10]} 30. Rd3 {[%clk 0:00:11]}  Bf7 {[%clk 0:01:07]} 31. Bb3 {[%clk 0:00:09]}  Nxe3 {[%clk 0:00:54]} 32. fxe3 {[%clk 0:00:09]}  Nc6 {[%clk 0:00:42]} 33. Nf5 {[%clk 0:00:09]}  Be5 {[%clk 0:00:41]} 34. Nh4 {[%clk 0:00:07]}  Na5 {[%clk 0:00:39]} 35. e4 {[%clk 0:00:04]}  c4 {[%clk 0:00:38]} 36. Bxc4 {[%clk 0:00:04]}  Nxc4 {[%clk 0:00:39]} 37. Rb3+ {[%clk 0:00:04]}  Ka7 {[%clk 0:00:40]} 38. Rc1 {[%clk 0:00:04]}  Bxd5 {[%clk 0:00:40]} 39. exd5 {[%clk 0:00:04]}  Rc8 {[%clk 0:00:40]} 40. Ng6 {[%clk 0:00:02]}  Rhe8 {[%clk 0:00:38]} 41. Rb4 {[%clk 0:00:02]}  Nb6 {[%clk 0:00:37]} 42. Rxc8 {[%clk 0:00:01]}  Rxc8 {[%clk 0:00:37]} 43. Ne7 {[%clk 0:00:01]}  Rc2 {[%clk 0:00:28]} 44. Nc6+ {[%clk 0:00:02]}  Kb7 {[%clk 0:00:29]} 45. Na5+ {[%clk 0:00:02]}  Kc7 {[%clk 0:00:29]} 46. Nc6 {[%clk 0:00:02]}  Nxd5 {[%clk 0:00:28]} 47. Rb3 {[%clk 0:00:01]}  Kxc6 {[%clk 0:00:27]} 48. a4 {[%clk 0:00:01]}  Nc3+ {[%clk 0:00:27]} 49. Ka3 {[%clk 0:00:01]}  Nb1+ {[%clk 0:00:27]} 50. Kb4 {[%clk 0:00:01]}  Bd4 {[%clk 0:00:25]} 51. Rd3 {[%clk 0:00:01]}  Bc5+ {[%clk 0:00:22]} 52. Kb3 {[%clk 0:00:01]}  Rxg2 {[%clk 0:00:23]} 53. a5 {[%clk 0:00:01]}  Nd2+ {[%clk 0:00:23]} 54. Ka2 {[%clk 0:00:01]}  Ne4 {[%clk 0:00:24]} 55. Rd1 {[%clk 0:00:01]}  Nc3+ {[%clk 0:00:23]} 56. Kb3 {[%clk 0:00:01]}  Nxd1 {[%clk 0:00:24]} 57. Ka4 {[%clk 0:00:02]}  Nxb2+ {[%clk 0:00:24]} 58. Kb3 {[%clk 0:00:01]}  h4 {[%clk 0:00:25]} 59. Ka2 {[%clk 0:00:01]}  h3 {[%clk 0:00:25]} 60. Kb3 {[%clk 0:00:02]}  h2 {[%clk 0:00:26]} 61. Ka2 {[%clk 0:00:03]}  h1=Q {[%clk 0:00:26]} 62. Kb3 {[%clk 0:00:04]}  Qd1+ {[%clk 0:00:26]} 63. Ka2 {[%clk 0:00:05]}  Na4# {[%clk 0:00:26]} 0-1


[Site "https://www.chess.com"]

[Event "Titled Tuesday Blitz May 25 2021"]
[White "Reprintsev, Alexander"]
[Black "Bodnaruk, Anastasia"]
[WhiteFideId "14100541"]
[BlackFideId "4181751"]
[WhiteElo "2177"]
[BlackElo "2393"]
[Result "0-1"]
[Round "10"]
[TimeControl "180+1"]
[Date "2021.05.25"]
[WhiteClock "0:00:06"]
[BlackClock "0:01:14"]

1. e4 {[%clk 0:02:47]}  c5 {[%clk 0:02:59]} 2. b3 {[%clk 0:02:46]}  Nf6 {[%clk 0:02:53]} 3. e5 {[%clk 0:02:43]}  Nd5 {[%clk 0:02:53]} 4. Bb2 {[%clk 0:02:44]}  g6 {[%clk 0:02:50]} 5. Nc3 {[%clk 0:02:43]}  Nb4 {[%clk 0:02:45]} 6. a3 {[%clk 0:02:33]}  N4c6 {[%clk 0:02:45]} 7. f4 {[%clk 0:02:27]}  Bg7 {[%clk 0:02:43]} 8. Nf3 {[%clk 0:02:27]}  O-O {[%clk 0:02:39]} 9. Qe2 {[%clk 0:02:27]}  d6 {[%clk 0:02:32]} 10. O-O-O {[%clk 0:02:22]}  Bg4 {[%clk 0:02:28]} 11. h3 {[%clk 0:01:56]}  Bxf3 {[%clk 0:02:22]} 12. Qxf3 {[%clk 0:01:52]}  dxe5 {[%clk 0:02:20]} 13. fxe5 {[%clk 0:01:32]}  Nxe5 {[%clk 0:02:19]} 14. Qxb7 {[%clk 0:01:30]}  Nbc6 {[%clk 0:02:19]} 15. Bb5 {[%clk 0:01:23]}  Rb8 {[%clk 0:02:15]} 16. Bxc6 {[%clk 0:01:23]}  Rxb7 {[%clk 0:02:15]} 17. Bxb7 {[%clk 0:01:24]}  c4 {[%clk 0:02:10]} 18. b4 {[%clk 0:01:10]}  a5 {[%clk 0:02:00]} 19. b5 {[%clk 0:01:07]}  Qc7 {[%clk 0:01:51]} 20. Ba6 {[%clk 0:00:54]}  Rd8 {[%clk 0:01:47]} 21. Rhe1 {[%clk 0:00:50]}  Qc5 {[%clk 0:01:43]} 22. Ne4 {[%clk 0:00:22]}  Qb6 {[%clk 0:01:36]} 23. a4 {[%clk 0:00:21]}  Nd7 {[%clk 0:01:29]} 24. Bxg7 {[%clk 0:00:15]}  Kxg7 {[%clk 0:01:29]} 25. d4 {[%clk 0:00:15]}  cxd3 {[%clk 0:01:19]} 26. Rxd3 {[%clk 0:00:11]}  Nb8 {[%clk 0:01:19]} 27. Rxd8 {[%clk 0:00:08]}  Qxd8 {[%clk 0:01:20]} 28. Rd1 {[%clk 0:00:08]}  Qb6 {[%clk 0:01:20]} 29. Nc3 {[%clk 0:00:04]}  Nxa6 {[%clk 0:01:17]} 30. bxa6 {[%clk 0:00:05]}  Qxa6 {[%clk 0:01:18]} 31. Rd5 {[%clk 0:00:06]}  Qf1+ {[%clk 0:01:16]} 32. Kb2 {[%clk 0:00:05]}  Qxg2 {[%clk 0:01:14]} 33. Rxa5 {[%clk 0:00:06]}  Qxh3 {[%clk 0:01:14]} 0-1


[Site "https://www.chess.com"]

[Event "Titled Tuesday Blitz May 25 2021"]
[White "Romanchuk, Viktor"]
[Black "Hess, Robert"]
[WhiteFideId "14109271"]
[BlackFideId "2022036"]
[WhiteElo "2242"]
[BlackElo "2557"]
[Result "0-1"]
[Round "10"]
[TimeControl "180+1"]
[Date "2021.05.25"]
[WhiteClock "0:00:02"]
[BlackClock "0:00:02"]

1. d4 {[%clk 0:03:00]}  g6 {[%clk 0:03:00]} 2. c4 {[%clk 0:03:00]}  Bg7 {[%clk 0:03:00]} 3. Nf3 {[%clk 0:03:00]}  c5 {[%clk 0:03:00]} 4. dxc5 {[%clk 0:02:54]}  Na6 {[%clk 0:02:58]} 5. g3 {[%clk 0:02:54]}  Nxc5 {[%clk 0:02:57]} 6. Bg2 {[%clk 0:02:54]}  Nf6 {[%clk 0:02:58]} 7. O-O {[%clk 0:02:52]}  O-O {[%clk 0:02:58]} 8. Nc3 {[%clk 0:02:51]}  d6 {[%clk 0:02:59]} 9. Nd4 {[%clk 0:02:46]}  Rb8 {[%clk 0:02:40]} 10. b3 {[%clk 0:02:43]}  a6 {[%clk 0:02:27]} 11. Bb2 {[%clk 0:02:40]}  e5 {[%clk 0:02:22]} 12. Nc2 {[%clk 0:02:36]}  b5 {[%clk 0:02:22]} 13. Ne3 {[%clk 0:02:32]}  Be6 {[%clk 0:02:16]} 14. cxb5 {[%clk 0:02:23]}  axb5 {[%clk 0:02:16]} 15. b4 {[%clk 0:02:22]}  Na6 {[%clk 0:01:50]} 16. a3 {[%clk 0:02:19]}  Nc7 {[%clk 0:01:47]} 17. Ncd5 {[%clk 0:02:17]}  Ncxd5 {[%clk 0:01:12]} 18. Nxd5 {[%clk 0:02:14]}  Nxd5 {[%clk 0:01:10]} 19. Bxd5 {[%clk 0:02:12]}  Qb6 {[%clk 0:01:09]} 20. Qd2 {[%clk 0:02:00]}  Bxd5 {[%clk 0:00:52]} 21. Qxd5 {[%clk 0:01:58]}  Rfc8 {[%clk 0:00:53]} 22. Rac1 {[%clk 0:01:56]}  Bh6 {[%clk 0:00:44]} 23. e3 {[%clk 0:01:48]}  Bf8 {[%clk 0:00:44]} 24. Rfd1 {[%clk 0:01:26]}  Rxc1 {[%clk 0:00:26]} 25. Rxc1 {[%clk 0:01:25]}  Qb7 {[%clk 0:00:26]} 26. Qxb7 {[%clk 0:01:18]}  Rxb7 {[%clk 0:00:27]} 27. e4 {[%clk 0:01:17]}  f6 {[%clk 0:00:25]} 28. Kf1 {[%clk 0:01:12]}  Kf7 {[%clk 0:00:25]} 29. Ke2 {[%clk 0:01:05]}  Ke6 {[%clk 0:00:25]} 30. f4 {[%clk 0:01:03]}  Bh6 {[%clk 0:00:14]} 31. Kf3 {[%clk 0:01:01]}  f5 {[%clk 0:00:11]} 32. Re1 {[%clk 0:00:48]}  exf4 {[%clk 0:00:06]} 33. gxf4 {[%clk 0:00:47]}  fxe4+ {[%clk 0:00:05]} 34. Rxe4+ {[%clk 0:00:46]}  Kd7 {[%clk 0:00:05]} 35. Re2 {[%clk 0:00:41]}  Rc7 {[%clk 0:00:04]} 36. Bf6 {[%clk 0:00:37]}  Rc4 {[%clk 0:00:04]} 37. Re4 {[%clk 0:00:33]}  d5 {[%clk 0:00:03]} 38. Rxc4 {[%clk 0:00:27]}  dxc4 {[%clk 0:00:03]} 39. Bc3 {[%clk 0:00:24]}  Ke6 {[%clk 0:00:02]} 40. Ke4 {[%clk 0:00:24]}  Bf8 {[%clk 0:00:02]} 41. Be5 {[%clk 0:00:21]}  Be7 {[%clk 0:00:02]} 42. h3 {[%clk 0:00:20]}  Bh4 {[%clk 0:00:03]} 43. Bc3 {[%clk 0:00:19]}  Bg3 {[%clk 0:00:03]} 44. Bd2 {[%clk 0:00:18]}  Bf2 {[%clk 0:00:03]} 45. Bc3 {[%clk 0:00:17]}  Bb6 {[%clk 0:00:03]} 46. Be5 {[%clk 0:00:16]}  Bd8 {[%clk 0:00:03]} 47. Bc3 {[%clk 0:00:15]}  Bf6 {[%clk 0:00:03]} 48. Bxf6 {[%clk 0:00:10]}  Kxf6 {[%clk 0:00:04]} 49. Kd4 {[%clk 0:00:10]}  Kf5 {[%clk 0:00:05]} 50. a4 {[%clk 0:00:10]}  bxa4 {[%clk 0:00:06]} 51. Kxc4 {[%clk 0:00:09]}  Kxf4 {[%clk 0:00:06]} 52. b5 {[%clk 0:00:08]}  Ke5 {[%clk 0:00:06]} 53. Kc5 {[%clk 0:00:08]}  a3 {[%clk 0:00:06]} 54. b6 {[%clk 0:00:08]}  a2 {[%clk 0:00:07]} 55. b7 {[%clk 0:00:08]}  a1=Q {[%clk 0:00:07]} 56. b8=Q+ {[%clk 0:00:09]}  Kf5 {[%clk 0:00:08]} 57. Qf8+ {[%clk 0:00:07]}  Qf6 {[%clk 0:00:07]} 58. Qh6 {[%clk 0:00:06]}  Qe7+ {[%clk 0:00:03]} 59. Kc4 {[%clk 0:00:05]}  Qe4+ {[%clk 0:00:03]} 60. Kc5 {[%clk 0:00:05]}  Qc2+ {[%clk 0:00:02]} 61. Kd6 {[%clk 0:00:03]}  Qd1+ {[%clk 0:00:01]} 62. Ke7 {[%clk 0:00:02]}  Qh5 {[%clk 0:00:02]} 0-1


[Site "https://www.chess.com"]

[Event "Titled Tuesday Blitz May 25 2021"]
[White "Rozen, Eytan"]
[Black "Janaszak, Dawid"]
[WhiteFideId "2816750"]
[BlackFideId "1119206"]
[WhiteElo "1963"]
[BlackElo "2332"]
[Result "1-0"]
[Round "10"]
[TimeControl "180+1"]
[Date "2021.05.25"]
[WhiteClock "0:00:02"]
[BlackClock "0:00:01"]

1. e4 {[%clk 0:02:58]}  c6 {[%clk 0:02:59]} 2. Nf3 {[%clk 0:02:26]}  d5 {[%clk 0:03:00]} 3. d4 {[%clk 0:02:13]}  dxe4 {[%clk 0:03:01]} 4. Ng5 {[%clk 0:02:13]}  Nf6 {[%clk 0:02:55]} 5. Bc4 {[%clk 0:02:12]}  e6 {[%clk 0:02:53]} 6. Nc3 {[%clk 0:02:11]}  Nbd7 {[%clk 0:02:46]} 7. O-O {[%clk 0:02:08]}  Nb6 {[%clk 0:02:45]} 8. Bb3 {[%clk 0:02:07]}  Be7 {[%clk 0:02:45]} 9. Ngxe4 {[%clk 0:02:05]}  O-O {[%clk 0:02:43]} 10. Qf3 {[%clk 0:01:25]}  Nbd5 {[%clk 0:02:43]} 11. Nxd5 {[%clk 0:01:21]}  exd5 {[%clk 0:02:41]} 12. Nxf6+ {[%clk 0:01:20]}  Bxf6 {[%clk 0:02:42]} 13. c3 {[%clk 0:01:19]}  Qd7 {[%clk 0:02:37]} 14. h3 {[%clk 0:01:14]}  Qf5 {[%clk 0:02:37]} 15. Bf4 {[%clk 0:01:13]}  g5 {[%clk 0:02:28]} 16. Bd6 {[%clk 0:01:11]}  Qxf3 {[%clk 0:02:28]} 17. gxf3 {[%clk 0:01:11]}  Rd8 {[%clk 0:02:20]} 18. Bc7 {[%clk 0:01:11]}  Re8 {[%clk 0:02:18]} 19. Kg2 {[%clk 0:01:07]}  Bf5 {[%clk 0:02:16]} 20. Rfe1 {[%clk 0:01:04]}  Kg7 {[%clk 0:02:14]} 21. f4 {[%clk 0:00:59]}  h6 {[%clk 0:01:57]} 22. Be5 {[%clk 0:00:55]}  gxf4 {[%clk 0:01:44]} 23. Bxf4 {[%clk 0:00:56]}  Re4 {[%clk 0:01:42]} 24. Rxe4 {[%clk 0:00:53]}  Bxe4+ {[%clk 0:01:41]} 25. f3 {[%clk 0:00:52]}  Bf5 {[%clk 0:01:41]} 26. Re1 {[%clk 0:00:53]}  Kh7 {[%clk 0:01:37]} 27. Be5 {[%clk 0:00:49]}  Rg8+ {[%clk 0:01:36]} 28. Kh2 {[%clk 0:00:49]}  Bh4 {[%clk 0:01:32]} 29. Re2 {[%clk 0:00:46]}  Re8 {[%clk 0:01:15]} 30. Bd1 {[%clk 0:00:42]}  Re6 {[%clk 0:00:58]} 31. Bg3 {[%clk 0:00:35]}  Bg5 {[%clk 0:00:55]} 32. f4 {[%clk 0:00:29]}  Bd8 {[%clk 0:00:52]} 33. Re5 {[%clk 0:00:26]}  Be4 {[%clk 0:00:39]} 34. Bg4 {[%clk 0:00:23]}  Rxe5 {[%clk 0:00:36]} 35. fxe5 {[%clk 0:00:24]}  f5 {[%clk 0:00:34]} 36. exf6 {[%clk 0:00:12]}  Bxf6 {[%clk 0:00:34]} 37. Bb8 {[%clk 0:00:12]}  b6 {[%clk 0:00:34]} 38. Bxa7 {[%clk 0:00:11]}  Bd8 {[%clk 0:00:27]} 39. Bd7 {[%clk 0:00:12]}  Bc7+ {[%clk 0:00:23]} 40. Kg1 {[%clk 0:00:12]}  Bb1 {[%clk 0:00:15]} 41. a3 {[%clk 0:00:10]}  Be4 {[%clk 0:00:11]} 42. Bxc6 {[%clk 0:00:10]}  Bf4 {[%clk 0:00:12]} 43. c4 {[%clk 0:00:09]}  Be3+ {[%clk 0:00:11]} 44. Kh2 {[%clk 0:00:10]}  Bf4+ {[%clk 0:00:11]} 45. Kg1 {[%clk 0:00:10]}  Be3+ {[%clk 0:00:11]} 46. Kf1 {[%clk 0:00:11]}  Bd3+ {[%clk 0:00:12]} 47. Ke1 {[%clk 0:00:10]}  dxc4 {[%clk 0:00:12]} 48. Bxb6 {[%clk 0:00:10]}  Bc1 {[%clk 0:00:08]} 49. a4 {[%clk 0:00:05]}  Bxb2 {[%clk 0:00:09]} 50. Bb5 {[%clk 0:00:06]}  Bc2 {[%clk 0:00:07]} 51. Bxc4 {[%clk 0:00:03]}  Bxa4 {[%clk 0:00:07]} 52. Kd2 {[%clk 0:00:04]}  Ba3 {[%clk 0:00:07]} 53. Ke3 {[%clk 0:00:04]}  Bc1+ {[%clk 0:00:06]} 54. Ke4 {[%clk 0:00:03]}  Bc6+ {[%clk 0:00:05]} 55. Bd5 {[%clk 0:00:03]}  Bd7 {[%clk 0:00:06]} 56. h4 {[%clk 0:00:04]}  Kg6 {[%clk 0:00:06]} 57. Bd8 {[%clk 0:00:04]}  Bf5+ {[%clk 0:00:05]} 58. Ke5 {[%clk 0:00:04]}  Be3 {[%clk 0:00:05]} 59. Be4 {[%clk 0:00:03]}  Bxe4 {[%clk 0:00:05]} 60. Kxe4 {[%clk 0:00:04]}  Bd2 {[%clk 0:00:02]} 61. Ke5 {[%clk 0:00:02]}  Kf7 {[%clk 0:00:01]} 62. Kf5 {[%clk 0:00:02]}  Ke8 {[%clk 0:00:01]} 63. Bf6 {[%clk 0:00:02]} 1-0


[Site "https://www.chess.com"]

[Event "Titled Tuesday Blitz May 25 2021"]
[White "Skatchkov, Pavel"]
[Black "Grochal, Joey"]
[WhiteFideId "4121848"]
[BlackFideId "1019945"]
[WhiteElo "2476"]
[BlackElo "2265"]
[Result "1/2-1/2"]
[Round "10"]
[TimeControl "180+1"]
[Date "2021.05.25"]
[WhiteClock "0:01:48"]
[BlackClock "0:00:46"]

1. d4 {[%clk 0:03:00]}  Nf6 {[%clk 0:03:00]} 2. c4 {[%clk 0:03:01]}  e6 {[%clk 0:03:00]} 3. Nf3 {[%clk 0:03:02]}  d5 {[%clk 0:02:59]} 4. g3 {[%clk 0:03:02]}  Be7 {[%clk 0:02:59]} 5. Bg2 {[%clk 0:03:02]}  O-O {[%clk 0:03:00]} 6. O-O {[%clk 0:03:02]}  dxc4 {[%clk 0:03:00]} 7. Qc2 {[%clk 0:03:00]}  a6 {[%clk 0:03:00]} 8. a4 {[%clk 0:03:00]}  Bd7 {[%clk 0:03:00]} 9. Qxc4 {[%clk 0:03:00]}  Bc6 {[%clk 0:03:00]} 10. Bg5 {[%clk 0:03:00]}  a5 {[%clk 0:03:00]} 11. Nc3 {[%clk 0:02:57]}  Na6 {[%clk 0:02:59]} 12. e3 {[%clk 0:02:52]}  Nb4 {[%clk 0:02:58]} 13. Rfd1 {[%clk 0:02:49]}  Nfd5 {[%clk 0:02:55]} 14. Bxe7 {[%clk 0:02:49]}  Qxe7 {[%clk 0:02:52]} 15. Ne5 {[%clk 0:02:49]}  Nxc3 {[%clk 0:02:49]} 16. Nxc6 {[%clk 0:02:49]}  Nxc6 {[%clk 0:02:21]} 17. bxc3 {[%clk 0:02:49]}  Qd6 {[%clk 0:02:17]} 18. Rab1 {[%clk 0:02:49]}  Ra7 {[%clk 0:02:09]} 19. Rb5 {[%clk 0:02:49]}  Nd8 {[%clk 0:02:09]} 20. f4 {[%clk 0:02:37]}  c6 {[%clk 0:02:09]} 21. Rb6 {[%clk 0:02:31]}  f5 {[%clk 0:02:02]} 22. Rdb1 {[%clk 0:02:30]}  Rf7 {[%clk 0:02:01]} 23. Qd3 {[%clk 0:02:26]}  Rc7 {[%clk 0:01:54]} 24. c4 {[%clk 0:02:27]}  Nf7 {[%clk 0:01:53]} 25. c5 {[%clk 0:02:27]}  Qd8 {[%clk 0:01:47]} 26. Qb3 {[%clk 0:02:18]}  Qc8 {[%clk 0:01:47]} 27. Bf1 {[%clk 0:02:19]}  Kf8 {[%clk 0:01:44]} 28. Bc4 {[%clk 0:02:19]}  Ke7 {[%clk 0:01:44]} 29. e4 {[%clk 0:02:06]}  g6 {[%clk 0:01:32]} 30. Re1 {[%clk 0:02:04]}  Nd8 {[%clk 0:01:30]} 31. exf5 {[%clk 0:02:03]}  gxf5 {[%clk 0:01:30]} 32. Qd1 {[%clk 0:02:01]}  Qd7 {[%clk 0:01:22]} 33. Qh5 {[%clk 0:02:02]}  Qxd4+ {[%clk 0:01:21]} 34. Kg2 {[%clk 0:01:48]}  Qxc4 {[%clk 0:01:07]} 35. Qg5+ {[%clk 0:01:48]}  Ke8 {[%clk 0:00:53]} 36. Qg8+ {[%clk 0:01:48]}  Ke7 {[%clk 0:00:51]} 37. Qg5+ {[%clk 0:01:48]}  Ke8 {[%clk 0:00:46]} 38. Qg8+ {[%clk 0:01:47]}  Ke7 {[%clk 0:00:46]} 39. Qg5+ {[%clk 0:01:48]} 1/2-1/2


[Site "https://www.chess.com"]

[Event "Titled Tuesday Blitz May 25 2021"]
[White "Sumaneev, Dmitry"]
[Black "Csonka, Balazs"]
[WhiteFideId "4125312"]
[BlackFideId "742910"]
[WhiteElo "2534"]
[BlackElo "2404"]
[Result "1-0"]
[Round "10"]
[TimeControl "180+1"]
[Date "2021.05.25"]
[WhiteClock "0:00:16"]
[BlackClock "0:00:02"]

1. e4 {[%clk 0:03:00]}  e5 {[%clk 0:02:58]} 2. Nc3 {[%clk 0:03:00]}  Nc6 {[%clk 0:02:57]} 3. g3 {[%clk 0:02:59]}  Nf6 {[%clk 0:02:57]} 4. Bg2 {[%clk 0:02:59]}  Bc5 {[%clk 0:02:57]} 5. Nge2 {[%clk 0:03:00]}  a6 {[%clk 0:02:50]} 6. O-O {[%clk 0:02:58]}  d6 {[%clk 0:02:49]} 7. d3 {[%clk 0:02:57]}  h5 {[%clk 0:02:37]} 8. Nd5 {[%clk 0:02:44]}  h4 {[%clk 0:01:57]} 9. Be3 {[%clk 0:02:36]}  hxg3 {[%clk 0:01:50]} 10. fxg3 {[%clk 0:02:21]}  Bxe3+ {[%clk 0:01:37]} 11. Nxe3 {[%clk 0:02:20]}  Ng4 {[%clk 0:01:37]} 12. Nxg4 {[%clk 0:02:14]}  Bxg4 {[%clk 0:01:38]} 13. Qd2 {[%clk 0:02:14]}  Bxe2 {[%clk 0:01:16]} 14. Qxe2 {[%clk 0:02:13]}  Qg5 {[%clk 0:01:16]} 15. c3 {[%clk 0:02:08]}  Qh6 {[%clk 0:01:10]} 16. h3 {[%clk 0:02:06]}  f6 {[%clk 0:01:06]} 17. b4 {[%clk 0:02:02]}  Qg6 {[%clk 0:00:58]} 18. Qf2 {[%clk 0:01:56]}  Nd8 {[%clk 0:00:53]} 19. a4 {[%clk 0:01:51]}  Ne6 {[%clk 0:00:48]} 20. h4 {[%clk 0:01:33]}  Ke7 {[%clk 0:00:36]} 21. d4 {[%clk 0:01:28]}  Rh6 {[%clk 0:00:30]} 22. d5 {[%clk 0:01:21]}  Nf8 {[%clk 0:00:24]} 23. c4 {[%clk 0:01:19]}  a5 {[%clk 0:00:14]} 24. c5 {[%clk 0:01:19]}  axb4 {[%clk 0:00:14]} 25. cxd6+ {[%clk 0:01:19]}  cxd6 {[%clk 0:00:15]} 26. Rfb1 {[%clk 0:01:12]}  Nd7 {[%clk 0:00:11]} 27. Rxb4 {[%clk 0:01:11]}  Nc5 {[%clk 0:00:12]} 28. a5 {[%clk 0:01:08]}  Kf8 {[%clk 0:00:11]} 29. Kh2 {[%clk 0:00:59]}  Kg8 {[%clk 0:00:11]} 30. Rc4 {[%clk 0:00:45]}  Qf7 {[%clk 0:00:08]} 31. Bh3 {[%clk 0:00:40]}  Kh8 {[%clk 0:00:05]} 32. Bg4 {[%clk 0:00:34]}  g5 {[%clk 0:00:04]} 33. h5 {[%clk 0:00:34]}  Kg7 {[%clk 0:00:04]} 34. Kg2 {[%clk 0:00:33]}  Rah8 {[%clk 0:00:03]} 35. Rh1 {[%clk 0:00:31]}  Ra8 {[%clk 0:00:02]} 36. Rxc5 {[%clk 0:00:29]}  dxc5 {[%clk 0:00:02]} 37. Qxc5 {[%clk 0:00:30]}  Qf8 {[%clk 0:00:01]} 38. Qb6 {[%clk 0:00:27]}  Kh8 {[%clk 0:00:01]} 39. Be6 {[%clk 0:00:24]}  f5 {[%clk 0:00:01]} 40. exf5 {[%clk 0:00:23]}  e4 {[%clk 0:00:02]} 41. Qd4+ {[%clk 0:00:22]}  Rf6 {[%clk 0:00:02]} 42. h6 {[%clk 0:00:18]}  Rxa5 {[%clk 0:00:01]} 43. Qxe4 {[%clk 0:00:17]}  Ra2+ {[%clk 0:00:02]} 44. Kf3 {[%clk 0:00:17]}  g4+ {[%clk 0:00:02]} 45. Kxg4 {[%clk 0:00:16]} 1-0


[Site "https://www.chess.com"]